fUSD/lending_fUSD_20240329
["ID","MTS","AMOUNT","RATE_DAILY","PERIOD"]
[320927972,1711715465984,-500.0,0.00052328,120]
[320927973,1711715465995,-740.46,0.00052328,120]
[320927974,1711715466008,-522.88,0.00052328,120]
[320927975,1711715466018,-500.0,0.00052328,120]
[320927976,1711715466030,-500.0,0.00052328,120]
[320927977,1711715466041,-500.0,0.00052328,120]
[320927978,1711715466052,-500.0,0.00052328,120]
[320927979,1711715466063,-500.0,0.00052328,120]
[320927980,1711715466075,-500.0,0.00052328,120]
[320927981,1711715466268,-150.0,0.00052328,120]
[320927982,1711715466279,-500.0,0.00052328,120]
[320927983,1711715466289,-500.0,0.00052328,120]
[320927984,1711715466299,-500.0,0.00052328,120]
[320927985,1711715466309,-525.02,0.00052328,120]
[320927986,1711715466318,-1085.74,0.00052328,120]
[320927987,1711715466328,-500.0,0.00052328,120]
[320927988,1711715466337,-930.68,0.00052328,120]
[320927989,1711715466347,-1247.64,0.00052328,120]
[320927990,1711715466357,-500.0,0.00052328,120]
[320927991,1711715466367,-637.35,0.00052328,120]
[320927992,1711715466376,-500.0,0.00052328,120]
[320927993,1711715466386,-268.18285439,0.00052328,120]
[320927994,1711715466396,-2186.22,0.00052328,120]
[320927995,1711715466406,-1025.85,0.00052328,120]
[320927996,1711715466416,-1080.64,0.00052328,120]
[320927997,1711715466426,-2210.32,0.00052328,120]
[320927998,1711715466436,-813.7,0.00052328,120]
[320927999,1711715466446,-500.0,0.00052328,120]
[320928000,1711715466456,-5519.83,0.00052328,120]
[320928001,1711715466465,-644.49,0.00052328,120]
[320928002,1711715466477,-500.0,0.00052328,120]
[320928003,1711715466487,-522.99,0.00052328,120]
[320928004,1711715466497,-1098.18,0.00052328,120]
[320928005,1711715466508,-744.47,0.00052328,120]
[320928006,1711715466518,-532.08,0.00052328,120]
[320928007,1711715466528,-815.77,0.00052328,120]
[320928008,1711715466538,-1398.69,0.00052328,120]
[320928009,1711715466548,-500.0,0.00052328,120]
[320928010,1711715466559,-1134.32,0.00052328,120]
[320928011,1711715466569,-500.0,0.00052328,120]
[320928012,1711715466579,-2306.29,0.00052328,120]
[320928013,1711715466589,-500.0,0.00052328,120]
[320928014,1711715466599,-906.41,0.00052328,120]
[320928015,1711715466609,-2037.34,0.00052328,120]
[320928016,1711715466619,-897.77,0.00052328,120]
[320928017,1711715466628,-831.59,0.00052328,120]
[320928018,1711715466639,-837.52,0.00052328,120]
[320928019,1711715466649,-1445.92,0.00052328,120]
[320928020,1711715466659,-865.91,0.00052328,120]
[320928021,1711715466669,-565.33669222,0.00052328,120]
[320928022,1711715466679,-4401.0,0.00052328,120]
[320928023,1711715466689,-618.06,0.00052328,120]
[320928024,1711715466699,-11946.25,0.00052328,120]
[320928025,1711715466709,-553.68,0.00052328,120]
[320928026,1711715466721,-536.07,0.00052328,120]
[320928027,1711715466730,-749.63,0.00052328,120]
[320928028,1711715466740,-970.01,0.00052328,120]
[320928029,1711715466750,-500.0,0.00052328,120]
[320928030,1711715466760,-500.0,0.00052328,120]
[320928031,1711715466770,-989.16,0.00052328,120]
[320928032,1711715466779,-1295.72,0.00052328,120]
[320928033,1711715466789,-1210.99,0.00052328,120]
[320928034,1711715466799,-500.0,0.00052328,120]
[320928035,1711715466808,-1766.07,0.00052328,120]
[320928036,1711715466818,-803.36,0.00052328,120]
[320928037,1711715466828,-500.0,0.00052328,120]
[320928038,1711715466838,-500.0,0.00052328,120]
[320928039,1711715466848,-607.41,0.00052328,120]
[320928040,1711715466857,-1040.75,0.00052328,120]
[320928041,1711715466866,-500.0,0.00052328,120]
[320928042,1711715466876,-591.93,0.00052328,120]
[320928043,1711715466885,-500.0,0.00052328,120]
[320928044,1711715466895,-500.0,0.00052328,120]
[320928045,1711715466904,-974.57,0.00052328,120]
[320928046,1711715466913,-500.0,0.00052328,120]
[320928047,1711715466923,-937.75,0.00052328,120]
[320928048,1711715466933,-7631.65,0.00052328,120]
[320928049,1711715466943,-500.0,0.00052328,120]
[320928050,1711715466953,-500.0,0.00052328,120]
[320928051,1711715466963,-547.15,0.00052328,120]
[320928052,1711715466974,-849.68,0.00052328,120]
[320928053,1711715466986,-1598.48,0.00052328,120]
[320928054,1711715466995,-530.07,0.00052328,120]
[320928055,1711715467005,-544.49,0.00052328,120]
[320928056,1711715467015,-500.0,0.00052328,120]
[320928057,1711715467026,-1844.98,0.00052328,120]
[320928058,1711715467035,-521.32,0.00052328,120]
[320928059,1711715467045,-600.49,0.00052328,120]
[320928060,1711715467055,-725.02,0.00052328,120]
[320928061,1711715467067,-997.33,0.00052328,120]
[320928062,1711715467078,-532.33,0.00052328,120]
[320928063,1711715467088,-2494.86,0.00052328,120]
[320928064,1711715467098,-500.0,0.00052328,120]
[320928065,1711715467108,-635.78,0.00052328,120]
[320928066,1711715467118,-500.0,0.00052328,120]
[320928067,1711715467128,-500.0,0.00052328,120]
[320928068,1711715467137,-854.79,0.00052328,21]
[320928069,1711715467148,-986.55,0.00052328,120]
[320928070,1711715467158,-2139.57,0.00052328,120]
[320928071,1711715467168,-500.0,0.00052328,120]
[320928072,1711715467178,-947.88,0.00052328,120]
[320928073,1711715467188,-922.26,0.00052328,120]
[320928074,1711715467198,-809.13,0.00052328,120]
[320928075,1711715467208,-555.49,0.00052328,120]
[320928076,1711715467219,-500.0,0.00052328,120]
[320928077,1711715467229,-1496.84,0.00052328,120]
[320928078,1711715467239,-1713.03,0.00052328,120]
[320928079,1711715467249,-714.32,0.00052328,120]
[320928080,1711715467259,-652.78,0.00052328,120]
[320928081,1711715467269,-525.31,0.00052328,120]
[320928082,1711715467279,-599.43,0.00052328,120]
[320928083,1711715467288,-500.0,0.00052328,120]
[320928084,1711715467298,-513.23,0.00052328,120]
[320928085,1711715467308,-500.0,0.00052328,120]
[320928086,1711715467318,-1171.13,0.00052328,120]
[320928087,1711715467328,-378.60698802,0.00052328,120]
[320928088,1711715467337,-500.0,0.00052328,120]
[320928089,1711715467346,-500.0,0.00052328,120]
[320928090,1711715467356,-500.0,0.00052328,120]
[320928091,1711715467366,-594.44,0.00052328,120]
[320928092,1711715467375,-230.8312188,0.00052328,120]
[320928093,1711715467386,-2019.49,0.00052328,120]
[320928094,1711715467396,-500.0,0.00052328,120]
[320928095,1711715467405,-525.7,0.00052328,120]
[320928096,1711715467415,-556.54,0.00052328,120]
[320928097,1711715467425,-699.71,0.00052328,120]
[320928098,1711715467435,-500.0,0.00052328,120]
[320928099,1711715467444,-739.52,0.00052328,120]
[320928100,1711715467454,-917.3,0.00052328,120]
[320928101,1711715467463,-157.032921,0.00052348,113]
[320928102,1711715467474,-240.64720123,0.00052362,92]
[320928103,1711715467483,-500.0,0.00052403,120]
[320928104,1711715467492,-173.032921,0.00052448,112]
[320928105,1711715467501,-750.0,0.000525,120]
[320928106,1711715467510,-750.0,0.000525,120]
[320928107,1711715467519,-750.0,0.000525,120]
[320928108,1711715467529,-750.0,0.000525,120]
[320928109,1711715467538,-750.0,0.000525,120]
[320928110,1711715467547,-500.0,0.00052553,120]
[320928111,1711715467556,-759.1155009,0.00052566,2]
[320928112,1711715467566,-4701.429255,0.00052566,2]
[320928113,1711715467575,-698.31841545,0.00052588,120]
[320928114,1711715467584,-500.0,0.00052602,30]
[320928115,1711715467594,-500.0,0.00052602,2]
[320928116,1711715467603,-500.0,0.00052602,120]
[320928117,1711715467612,-1672.16,0.00052602,120]
[320928118,1711715467622,-500.0,0.00052602,120]
[320928119,1711715467631,-740.46,0.00052602,120]
[320928120,1711715467640,-522.88,0.00052602,120]
[320928121,1711715467650,-500.0,0.00052602,120]
[320928122,1711715467660,-500.0,0.00052602,120]
[320928123,1711715467669,-500.0,0.00052602,120]
[320928124,1711715467679,-500.0,0.00052602,120]
[320928125,1711715467688,-477.53596243,0.00052602,120]
[320928126,1711715467698,-500.0,0.00052602,120]
[320928127,1711715467707,-150.0,0.00052602,120]
[320928128,1711715467716,-422.59958597,0.00052602,120]
[320928129,1711715467728,-422.03673733,0.00052602,120]
[320928130,1711715467737,-500.0,0.00052602,120]
[320928131,1711715467746,-525.02,0.00052602,120]
[320928132,1711715467755,-1085.74,0.00052602,120]
[320928133,1711715467765,-500.0,0.00052602,120]
[320928134,1711715467774,-930.68,0.00052602,120]
[320928135,1711715467784,-1247.64,0.00052602,120]
[320928136,1711715467793,-500.0,0.00052602,120]
[320928137,1711715467802,-637.35,0.00052602,120]
[320928138,1711715467811,-500.0,0.00052602,120]
[320928139,1711715467822,-2186.22,0.00052602,120]
[320928140,1711715467832,-1025.85,0.00052602,120]
[320928141,1711715467841,-1080.64,0.00052602,120]
[320928142,1711715467850,-2210.32,0.00052602,120]
[320928143,1711715467859,-813.7,0.00052602,120]
[320928144,1711715467869,-500.0,0.00052602,120]
[320928145,1711715467878,-5519.83,0.00052602,120]
[320928146,1711715467887,-644.49,0.00052602,120]
[320928147,1711715467896,-500.0,0.00052602,120]
[320928148,1711715467905,-522.99,0.00052602,120]
[320928149,1711715467916,-1098.18,0.00052602,120]
[320928150,1711715467926,-744.47,0.00052602,120]
[320928151,1711715467936,-532.08,0.00052602,120]
[320928152,1711715467946,-815.77,0.00052602,120]
[320928153,1711715467955,-1398.69,0.00052602,120]
[320928154,1711715467965,-500.0,0.00052602,120]
[320928155,1711715467977,-1134.32,0.00052602,120]
[320928156,1711715467988,-500.0,0.00052602,120]
[320928157,1711715468001,-2306.29,0.00052602,120]
[320928158,1711715468010,-500.0,0.00052602,120]
[320928159,1711715468019,-906.41,0.00052602,120]
[320928160,1711715468030,-2037.34,0.00052602,120]
[320928161,1711715468040,-897.77,0.00052602,120]
[320928162,1711715468050,-831.59,0.00052602,120]
[320928163,1711715468060,-837.52,0.00052602,120]
[320928164,1711715468072,-1445.92,0.00052602,120]
[320928165,1711715468081,-865.91,0.00052602,120]
[320928166,1711715468092,-4401.0,0.00052602,120]
[320928167,1711715468102,-618.06,0.00052602,120]
[320928168,1711715468114,-11946.25,0.00052602,120]
[320928169,1711715468124,-553.68,0.00052602,120]
[320928170,1711715468133,-536.07,0.00052602,120]
[320928171,1711715468143,-749.63,0.00052602,120]
[320928172,1711715468153,-500.0,0.00052602,120]
[320928173,1711715468163,-970.01,0.00052602,120]
[320928174,1711715468173,-500.0,0.00052602,120]
[320928175,1711715468183,-989.16,0.00052602,120]
[320928176,1711715468193,-1295.72,0.00052602,120]
[320928177,1711715468203,-1210.99,0.00052602,120]
[320928178,1711715468213,-500.0,0.00052602,120]
[320928179,1711715468223,-1766.07,0.00052602,120]
[320928180,1711715468232,-803.36,0.00052602,120]
[320928181,1711715468242,-500.0,0.00052602,120]
[320928182,1711715468251,-333.74875304,0.00052602,120]
[320928183,1711715468261,-607.41,0.00052602,120]
[320928184,1711715468270,-1040.75,0.00052602,120]
[320928185,1711715468280,-500.0,0.00052602,120]
[320928186,1711715468290,-591.93,0.00052602,120]
[320928187,1711715468299,-500.0,0.00052602,120]
[320928188,1711715468309,-500.0,0.00052602,120]
[320928189,1711715468318,-974.57,0.00052602,120]
[320928190,1711715468328,-500.0,0.00052602,120]
[320928191,1711715468338,-937.75,0.00052602,120]
[320928192,1711715468348,-7631.65,0.00052602,120]
[320928193,1711715468357,-500.0,0.00052602,120]
[320928194,1711715468367,-604.12839992,0.00052602,120]
[320928195,1711715468377,-547.15,0.00052602,120]
[320928196,1711715468386,-849.68,0.00052602,120]
[320928197,1711715468396,-1598.48,0.00052602,120]
[320928198,1711715468405,-530.07,0.00052602,120]
[320928199,1711715468414,-544.49,0.00052602,120]
[320928200,1711715468424,-500.0,0.00052602,120]
[320928201,1711715468433,-1844.98,0.00052602,120]
[320928202,1711715468442,-521.32,0.00052602,120]
[320928203,1711715468452,-600.49,0.00052602,120]
[320928204,1711715468462,-725.02,0.00052602,120]
[320928205,1711715468472,-997.33,0.00052602,120]
[320928206,1711715468482,-532.33,0.00052602,120]
[320928207,1711715468491,-2494.86,0.00052602,120]
[320928208,1711715468501,-500.0,0.00052602,120]
[320928209,1711715468510,-635.78,0.00052602,120]
[320928210,1711715468520,-500.0,0.00052602,120]
[320928211,1711715468529,-500.0,0.00052602,120]
[320928212,1711715468539,-854.79,0.00052602,21]
[320928213,1711715468550,-986.55,0.00052602,120]
[320928214,1711715468560,-2139.57,0.00052602,120]
[320928215,1711715468569,-500.0,0.00052602,120]
[320928216,1711715468578,-947.88,0.00052602,120]
[320928217,1711715468588,-922.26,0.00052602,120]
[320928218,1711715468597,-809.13,0.00052602,120]
[320928219,1711715468607,-555.49,0.00052602,120]
[320928220,1711715468616,-500.0,0.00052602,120]
[320928221,1711715468625,-1496.84,0.00052602,120]
[320928222,1711715468635,-1713.03,0.00052602,120]
[320928223,1711715468645,-714.32,0.00052602,120]
[320928224,1711715468655,-652.78,0.00052602,120]
[320928225,1711715468664,-525.31,0.00052602,120]
[320928226,1711715468674,-599.43,0.00052602,120]
[320928227,1711715468683,-500.0,0.00052602,120]
[320928228,1711715468693,-513.23,0.00052602,120]
[320928229,1711715468702,-500.0,0.00052602,120]
[320928230,1711715468712,-1171.13,0.00052602,120]
[320928231,1711715468723,-1412.38,0.00052602,120]
[320928232,1711715468732,-500.0,0.00052602,120]
[320928233,1711715468742,-500.0,0.00052602,120]
[320928234,1711715468751,-500.0,0.00052602,120]
[320928235,1711715468761,-594.44,0.00052602,120]
[320928236,1711715468771,-2019.49,0.00052602,120]
[320928237,1711715468780,-500.0,0.00052602,120]
[320928238,1711715468790,-525.7,0.00052602,120]
[320928239,1711715468799,-556.54,0.00052602,120]
[320928240,1711715468809,-699.71,0.00052602,120]
[320928241,1711715468819,-500.0,0.00052602,120]
[320928242,1711715468830,-739.52,0.00052602,120]
[320928243,1711715468839,-917.3,0.00052602,120]
[320928244,1711715468848,-927.8078344,0.00052654,2]
[320928245,1711715468857,-1096.500168,0.00052654,2]
[320928246,1711715468866,-5746.1913116,0.00052654,2]
[320928247,1711715468877,-6790.9533683,0.00052654,2]
[320928248,1711715468886,-7835.715425,0.00052654,2]
[320928249,1711715468896,-153.21053773,0.0005269,88]
[320928250,1711715468905,-216544.71,0.0005269,30]
[320928251,1711715468915,-151.0,0.0005269,120]
[320928252,1711715468925,-460.0,0.000527,40]
[320928253,1711715468935,-152.65,0.000527,7]
[320928254,1711715468945,-152.65,0.000527,7]
[320928255,1711715468955,-152.65,0.000527,7]
[320928256,1711715468965,-152.65,0.000527,7]
[320928257,1711715468982,-152.65,0.000527,7]
[320928258,1711715468994,-152.65,0.000527,7]
[320928259,1711715469003,-152.65,0.000527,7]
[320928260,1711715469013,-152.65,0.000527,7]
[320928261,1711715469023,-152.65,0.000527,7]
[320928262,1711715469032,-152.65,0.000527,7]
[320928263,1711715469041,-152.65,0.000527,7]
[320928264,1711715469050,-152.65,0.000527,7]
[320928265,1711715469059,-152.65,0.000527,7]
[320928266,1711715469069,-152.65,0.000527,7]
[320928267,1711715469080,-152.65,0.000527,7]
[320928268,1711715469088,-152.65,0.000527,7]
[320928269,1711715469098,-3455.57,0.000527,7]
[320928270,1711715469107,-3455.57,0.000527,7]
[320928271,1711715469117,-3455.57,0.000527,7]
[320928272,1711715469126,-3455.57,0.000527,7]
[320928273,1711715469136,-3455.57,0.000527,7]
[320928274,1711715469145,-3455.57,0.000527,7]
[320928275,1711715469155,-3455.57,0.000527,7]
[320928276,1711715469165,-3455.57,0.000527,7]
[320928277,1711715469174,-3455.57,0.000527,7]
[320928278,1711715469184,-3455.57,0.000527,7]
[320928279,1711715469193,-3455.57,0.000527,7]
[320928280,1711715469203,-3455.57,0.000527,7]
[320928281,1711715469212,-3455.57,0.000527,7]
[320928282,1711715469226,-3455.57,0.000527,7]
[320928283,1711715469235,-3455.57,0.000527,7]
[320928284,1711715469245,-3455.57,0.000527,7]
[320928285,1711715469254,-3455.57,0.000527,7]
[320928286,1711715469263,-3455.57,0.000527,7]
[320928287,1711715469273,-3455.57,0.000527,7]
[320928288,1711715469282,-3455.57,0.000527,7]
[320928289,1711715469292,-151.0,0.000527,120]
[320928290,1711715469302,-151.0,0.000527,120]
[320928291,1711715469313,-314.82,0.000527,2]
[320928292,1711715469322,-500.0,0.00052702,120]
[320928293,1711715469332,-161.032921,0.00052748,111]
[320928294,1711715469342,-1265.1925015,0.00052764,2]
[320928295,1711715469352,-20118.94253573,0.000528,7]
[320928296,1711715469361,-1504.94243674,0.000528,120]
[320928297,1711715469371,-483.39971342,0.000528,2]
[320928298,1711715469381,-308.43333333,0.00052822,120]
[320928299,1711715469390,-500.0,0.00052852,120]
[320928300,1711715469399,-500.0,0.00052876,2]
[320928301,1711715469409,-500.0,0.00052876,120]
[320928302,1711715469419,-1672.16,0.00052876,120]
[320928303,1711715469428,-500.0,0.00052876,120]
[320928304,1711715469437,-740.46,0.00052876,120]
[320928305,1711715469447,-522.88,0.00052876,120]
[320928306,1711715469456,-500.0,0.00052876,120]
[320928307,1711715469465,-500.0,0.00052876,120]
[320928308,1711715469481,-500.0,0.00052876,120]
[320928309,1711715469492,-500.0,0.00052876,120]
[320928310,1711715469503,-500.0,0.00052876,120]
[320928311,1711715469514,-150.0,0.00052876,120]
[320928312,1711715469525,-345.36646164,0.00052876,120]
[320928313,1711715469537,-525.02,0.00052876,120]
[320928314,1711715469548,-1085.74,0.00052876,120]
[320928315,1711715469689,-500.0,0.00052876,120]
[320928316,1711715469717,-930.68,0.00052876,120]
[320928317,1711715469733,-1247.64,0.00052876,120]
[320928318,1711715469744,-500.0,0.00052876,120]
[320928319,1711715469754,-637.35,0.00052876,120]
[320928320,1711715469765,-500.0,0.00052876,120]
[320928321,1711715469775,-2186.22,0.00052876,120]
[320928322,1711715469785,-1025.85,0.00052876,120]
[320928323,1711715469796,-1080.64,0.00052876,120]
[320928324,1711715469806,-2210.32,0.00052876,120]
[320928325,1711715469815,-813.7,0.00052876,120]
[320928326,1711715469825,-500.0,0.00052876,120]
[320928327,1711715469836,-5519.83,0.00052876,120]
[320928328,1711715469846,-644.49,0.00052876,120]
[320928329,1711715469857,-500.0,0.00052876,120]
[320928330,1711715469867,-522.99,0.00052876,120]
[320928331,1711715469878,-1098.18,0.00052876,120]
[320928332,1711715469888,-744.47,0.00052876,120]
[320928333,1711715469899,-532.08,0.00052876,120]
[320928334,1711715469909,-815.77,0.00052876,120]
[320928335,1711715469920,-1398.69,0.00052876,120]
[320928336,1711715469930,-500.0,0.00052876,120]
[320928337,1711715469941,-500.0,0.00052876,120]
[320928338,1711715469951,-1134.32,0.00052876,120]
[320928339,1711715469961,-2306.29,0.00052876,120]
[320928340,1711715469974,-500.0,0.00052876,120]
[320928341,1711715469987,-906.41,0.00052876,120]
[320928342,1711715469998,-2037.34,0.00052876,120]
[320928343,1711715470009,-897.77,0.00052876,120]
[320928344,1711715470019,-831.59,0.00052876,120]
[320928345,1711715470029,-837.52,0.00052876,120]
[320928346,1711715470040,-1445.92,0.00052876,120]
[320928347,1711715470050,-865.91,0.00052876,120]
[320928348,1711715470060,-4401.0,0.00052876,120]
[320928349,1711715470070,-618.06,0.00052876,120]
[320928350,1711715470081,-11946.25,0.00052876,120]
[320928351,1711715470091,-553.68,0.00052876,120]
[320928352,1711715470101,-536.07,0.00052876,120]
[320928353,1711715470110,-749.63,0.00052876,120]
[320928354,1711715470121,-369.47612426,0.00052876,120]
[320928355,1711715470131,-970.01,0.00052876,120]
[320928356,1711715470141,-500.0,0.00052876,120]
[320928357,1711715470151,-989.16,0.00052876,120]
[320928358,1711715470162,-1295.72,0.00052876,120]
[320928359,1711715470172,-1210.99,0.00052876,120]
[320928360,1711715470182,-500.0,0.00052876,120]
[320928361,1711715470192,-1766.07,0.00052876,120]
[320928362,1711715470202,-803.36,0.00052876,120]
[320928363,1711715470213,-500.0,0.00052876,120]
[320928364,1711715470225,-607.41,0.00052876,120]
[320928365,1711715470235,-1040.75,0.00052876,120]
[320928366,1711715470245,-500.0,0.00052876,120]
[320928367,1711715470255,-591.93,0.00052876,120]
[320928368,1711715470265,-500.0,0.00052876,120]
[320928369,1711715470275,-500.0,0.00052876,120]
[320928370,1711715470285,-974.57,0.00052876,120]
[320928371,1711715470296,-500.0,0.00052876,120]
[320928372,1711715470306,-937.75,0.00052876,120]
[320928373,1711715470317,-7631.65,0.00052876,120]
[320928374,1711715470327,-500.0,0.00052876,120]
[320928375,1711715470337,-547.15,0.00052876,120]
[320928376,1711715470346,-849.68,0.00052876,120]
[320928377,1711715470356,-1598.48,0.00052876,120]
[320928378,1711715470365,-530.07,0.00052876,120]
[320928379,1711715470375,-544.49,0.00052876,120]
[320928380,1711715470385,-500.0,0.00052876,120]
[320928381,1711715470394,-1844.98,0.00052876,120]
[320928382,1711715470404,-521.32,0.00052876,120]
[320928383,1711715470414,-600.49,0.00052876,120]
[320928384,1711715470424,-725.02,0.00052876,120]
[320928385,1711715470433,-997.33,0.00052876,120]
[320928386,1711715470443,-532.33,0.00052876,120]
[320928387,1711715470453,-2494.86,0.00052876,120]
[320928388,1711715470462,-500.0,0.00052876,120]
[320928389,1711715470475,-635.78,0.00052876,120]
[320928390,1711715470485,-500.0,0.00052876,120]
[320928391,1711715470494,-500.0,0.00052876,120]
[320928392,1711715470504,-854.79,0.00052876,21]
[320928393,1711715470515,-986.55,0.00052876,120]
[320928394,1711715470526,-2139.57,0.00052876,120]
[320928395,1711715470536,-500.0,0.00052876,120]
[320928396,1711715470546,-922.26,0.00052876,120]
[320928397,1711715470557,-947.88,0.00052876,120]
[320928398,1711715470567,-809.13,0.00052876,120]
[320928399,1711715470575,-555.49,0.00052876,120]
[320928400,1711715470585,-500.0,0.00052876,120]
[320928401,1711715470594,-1496.84,0.00052876,120]
[320928402,1711715470604,-1713.03,0.00052876,120]
[320928403,1711715470614,-714.32,0.00052876,120]
[320928404,1711715470624,-652.78,0.00052876,120]
[320928405,1711715470634,-525.31,0.00052876,120]
[320928406,1711715470644,-599.43,0.00052876,120]
[320928407,1711715470654,-500.0,0.00052876,120]
[320928408,1711715470664,-513.23,0.00052876,120]
[320928409,1711715470674,-500.0,0.00052876,120]
[320928410,1711715470684,-1171.13,0.00052876,120]
[320928411,1711715470693,-500.0,0.00052876,120]
[320928412,1711715470704,-500.0,0.00052876,120]
[320928413,1711715470713,-500.0,0.00052876,120]
[320928414,1711715470725,-594.44,0.00052876,120]
[320928415,1711715470735,-2019.49,0.00052876,120]
[320928416,1711715470743,-500.0,0.00052876,120]
[320928417,1711715470752,-525.7,0.00052876,120]
[320928418,1711715470762,-556.54,0.00052876,120]
[320928419,1711715470772,-699.71,0.00052876,120]
[320928420,1711715470782,-500.0,0.00052876,120]
[320928421,1711715470791,-739.52,0.00052876,120]
[320928422,1711715470801,-917.3,0.00052876,120]
[320928423,1711715470810,-772.07406744,0.0005288,120]
[320928424,1711715470820,-772.07406744,0.0005288,120]
[320928425,1711715470832,-772.07406744,0.0005288,120]
[320928426,1711715470841,-772.07406744,0.0005288,120]
[320928427,1711715470849,-772.07406744,0.0005288,120]
[320928428,1711715470859,-772.07406744,0.0005288,120]
[320928429,1711715470869,-772.07406744,0.0005288,120]
[320928430,1711715470879,-772.07406744,0.0005288,120]
[320928431,1711715470890,-772.07406744,0.0005288,120]
[320928432,1711715470899,-772.07406744,0.0005288,120]
[320928433,1711715470908,-772.07406744,0.0005288,120]
[320928434,1711715470917,-772.07406744,0.0005288,120]
[320928435,1711715470927,-772.07406744,0.0005288,120]
[320928436,1711715470936,-772.07406744,0.0005288,120]
[320928437,1711715470946,-772.07406744,0.0005288,120]
[320928438,1711715470956,-772.07406744,0.0005288,120]
[320928439,1711715470965,-772.07406744,0.0005288,120]
[320928440,1711715470977,-772.07406744,0.0005288,120]
[320928441,1711715470987,-772.07406744,0.0005288,120]
[320928442,1711715470996,-772.57,0.0005288,120]
[320928443,1711715471008,-483.53187613,0.0005288,120]
[320928444,1711715471017,-483.53187613,0.0005288,120]
[320928445,1711715471026,-483.53187613,0.0005288,120]
[320928446,1711715471035,-483.53187613,0.0005288,120]
[320928447,1711715471045,-483.53187613,0.0005288,120]
[320928448,1711715471055,-483.53187613,0.0005288,120]
[320928449,1711715471065,-483.53187613,0.0005288,120]
[320928450,1711715471075,-483.53187613,0.0005288,120]
[320928451,1711715471085,-483.53187613,0.0005288,120]
[320928452,1711715471095,-483.53187613,0.0005288,120]
[320928453,1711715471105,-483.53187613,0.0005288,120]
[320928454,1711715471115,-483.53187613,0.0005288,120]
[320928455,1711715471128,-483.53187613,0.0005288,120]
[320928456,1711715471137,-483.53187613,0.0005288,120]
[320928457,1711715471146,-483.53187613,0.0005288,120]
[320928458,1711715471155,-483.53187613,0.0005288,120]
[320928459,1711715471165,-483.53187613,0.0005288,120]
[320928460,1711715471175,-483.53187613,0.0005288,120]
[320928461,1711715471184,-483.53187613,0.0005288,120]
[320928462,1711715471193,-484.03,0.0005288,120]
[320928463,1711715471203,-196.74089384,0.0005288,120]
[320928464,1711715471213,-196.74089384,0.0005288,120]
[320928465,1711715471224,-196.74089384,0.0005288,120]
[320928466,1711715471234,-196.74089384,0.0005288,120]
[320928467,1711715471243,-196.74089384,0.0005288,120]
[320928468,1711715471252,-196.74089384,0.0005288,120]
[320928469,1711715471261,-196.74089384,0.0005288,120]
[320928470,1711715471270,-196.74089384,0.0005288,120]
[320928471,1711715471279,-196.74089384,0.0005288,120]